Cogmind - Beta 12 @@@ ROGUE MODE // 2023.09.14 @ 17:13:24 Player: Trantor Result: Smashed by cave-in Performance ------------- Evolutions (1) 500 Regions Visited (6) 1200 Robots Destroyed (50) 250 Value Destroyed (1408) 1408 Prototype IDs (7) 140 Alien Tech Used (0) 0 Bonus (0) 0 TOTAL SCORE: 3498 Bonus ------- None Cogmind --------- Core Integrity 0/400 Matter 199/300 Energy 116/125 System Corruption 10% Temperature Cool (0) Movement Walking (130) Location -8/Mines Parts ------- > --- POWER (1) -------- Light Ion Engine > --- PROPULSION (3) --- Titanium Leg Titanium Leg > --- UTILITY (3) ------ (None) > --- WEAPON (2) ------- Improved Assault Rifle Improved Assault Rifle > --- INVENTORY (5) ---- Cooled Ion Engine Aluminum Leg Aluminum Leg Flight Unit Heavy Laser Peak State ------------ > --- POWER ------------ Cooled Ion Engine > --- PROPULSION ------- Titanium Leg Titanium Leg Titanium Leg > --- UTILITY ---------- Advanced Heat Sink Large Storage Unit > --- WEAPON ----------- Improved Assault Rifle Improved Assault Rifle > --- INVENTORY -------- Light Ion Engine Cooled Ion Engine Aluminum Leg Aluminum Leg Aluminum Leg Aluminum Leg Titanium Leg Compact Wheel Flight Unit Heat Sink Heat Sink High-capacity Matter Pod Rocket Launcher Mini Grenade Launcher Hammer [Rating: 26] Favorites ----------- Power Cooled Ion Engine Engine Cooled Ion Engine Propulsion Titanium Leg Leg Titanium Leg Wheel Compact Wheel Hover Unit Hover Unit Utility Light Armor Plating Device Heat Sink Storage Large Storage Unit Processor Targeting Computer Protection Light Armor Plating Weapon Improved Assault Rifle Energy Gun EM Shotgun Ballistic Gun Improved Assault Rifle Launcher Grenade Launcher Impact Weapon Hammer Build | -11 -10 -10 -9 -9 -9 -8 ------- Run | Jun Mat Min Mat Min Exi Min Slots Evolved 2 | . . . 2 . . . Power . | . . . . . . . Propulsion 1 | . . . 1 . . . Utility 1 | . . . 1 . . . Weapon . | . . . . . . . Parts Attached 53 | . 9 1 28 9 . 6 Power 5 | . 1 . 3 . . 1 Engine 5 | . 1 . 3 . . 1 Core . | . . . . . . . Reactor . | . . . . . . . Propulsion 8 | . . . 8 . . . Treads . | . . . . . . . Leg 3 | . . . 3 . . . Wheel 2 | . . . 2 . . . Hover 3 | . . . 3 . . . Flight . | . . . . . . . Utility 18 | . 3 1 10 3 . 1 Device 4 | . . . 3 . . 1 Storage 4 | . 2 . 1 1 . . Processor 1 | . . . 1 . . . Hackware . | . . . . . . . Protection 9 | . 1 1 5 2 . . Artifact . | . . . . . . . Weapon 22 | . 5 . 7 6 . 4 Energy Gun 1 | . . . 1 . . . Energy Cannon . | . . . . . . . Ballistic Gun 12 | . 3 . 5 2 . 2 Ballistic Cannon . | . . . . . . . Launcher 7 | . 2 . . 3 . 2 Special Weapon . | . . . . . . . Impact Weapon 2 | . . . 1 1 . . Slashing Weapon . | . . . . . . . Piercing Weapon . | . . . . . . . Special Melee Weapon . | . . . . . . . Unidentified Prototypes . | . . . . . . . Parts Lost 9 | . . 1 1 1 . 6 Power 1 | . . . . . . 1 Propulsion 2 | . . 1 . . . 1 Utility 6 | . . . 1 1 . 4 Weapon . | . . . . . . . Highest Loss Streak 3 | . . 1 1 1 . 3 To Critical Strikes . | . . . . . . . Average Slot Usage (%) 95 | . 96 42 90 100 100 86 Engine 12 | . 14 14 10 11 11 10 Leg 28 | . 28 9 22 33 33 33 Device 2 | . . . 7 2 . 9 Storage 9 | . 14 4 1 9 11 11 Processor 5 | . . . 8 11 11 . Protection 10 | . 10 4 12 10 11 . Ballistic Gun 19 | . 21 4 17 18 22 18 Launcher 2 | . 5 4 . . . 3 Naked Turns . | . . . . . . . Heaviest Build 38 | 12 24 24 37 38 37 35 Greatest Support 51 | 20 20 20 51 51 51 51 Greatest Overweight (x) 6 | . 1 1 6 . . . Average Overweight (x) . | . . 1 . . . . Largest Inventory Capacity 15 | . 10 10 15 15 15 15 Average Capacity 10 | . 9 6 6 13 15 15 Most Carried 15 | . 10 10 9 15 15 15 Average Carried 10 | . 9 6 4 11 15 14 Final Capacity 15 | 8 10 5 5 15 15 5 Final Carried 15 | 6 10 5 5 15 15 5 Class Distribution -------------------- 100% | Mutant Dominant Class ---------------- Mutant | -10/Materials Mutant | -10/Mines Mutant | -9/Materials Mutant | -9/Mines Mutant | -9/Exiles Mutant | -8/Mines Resources | -11 -10 -10 -9 -9 -9 -8 ----------- Run | Jun Mat Min Mat Min Exi Min Matter Collected 1850 | 192 455 . 472 347 282 102 Remotely . | . . . . . . . Salvage Created 1509 | . 444 . 472 397 . 196 Parts 100 | . 34 . 33 27 . 6 Haulers Intercepted 2 | . 2 . . . . . Recyclers Shooed . | . . . . . . . Parts Field Recycled . | . . . . . . . Retrieved Matter . | . . . . . . . Parts Self-Destructed . | . . . . . . . Prevented . | . . . . . . . Kills | -11 -10 -10 -9 -9 -9 -8 ------- Run | Jun Mat Min Mat Min Exi Min Combat Hostiles Destroyed 44 | . 11 . 10 14 . 9 Guns 26 | . 8 . 10 6 . 2 AOE 18 | . 3 . . 8 . 7 Classes Destroyed 10 | . 4 . 1 5 . . Worker 1 | . . . . 1 . . Builder 1 | . . . . 1 . . Tunneler 1 | . . . . 1 . . Hauler 2 | . 2 . . . . . Recycler 1 | . . . . 1 . . Watcher 1 | . 1 . . . . . Swarmer 12 | . 3 . . 6 . 3 Grunt 26 | . 8 . 5 7 . 6 Sentry 5 | . . . 5 . . . Assembled 1 | . . . . 1 . . Best Kill Streak 8 | . 4 . 2 8 . 3 Combat Bots Only 5 | . 4 . 2 5 . 3 Max Kills in Single Turn 2 | . 2 . 2 2 . 2 Gunslinging 1 | . . . 1 . . . Exploded 2 | . 1 . . 2 . 2 Melee . | . . . . . . . Uniques/NPCs Destroyed . | . . . . . . . Combat | -11 -10 -10 -9 -9 -9 -8 -------- Run | Jun Mat Min Mat Min Exi Min Damage Taken 2687 | . 404 351 604 398 . 930 Core 602 | . 101 92 65 55 . 289 Absorbed by Shields . | . . . . . . . Regen/Repaired (Parts) 68 | . . . 68 . . . Core Remaining (%) 61 | 100 . 22 . . . . Volleys Fired 143 | . 44 . 41 37 . 21 Largest 2 | . 2 . 2 2 . 2 Hottest 68 | . 46 . 68 46 . 46 Shots Fired 230 | . 74 . 82 43 . 31 Gun 204 | . 69 . 82 33 . 20 Cannon . | . . . . . . . Launcher 26 | . 5 . . 10 . 11 Special . | . . . . . . . Kinetic 199 | . 69 . 77 33 . 20 Thermal . | . . . . . . . Explosive 26 | . 5 . . 10 . 11 Electromagnetic 5 | . . . 5 . . . Robot Hit Streak 23 | . 7 . 23 11 . 12 Robot Miss Streak 4 | . 4 . 2 2 . 1 Penetration Max . | . . . . . . . Secondary Targets 2 | . . . 2 . . . Max Gunslinging Chain 1 | . . . 1 . . . Shots Hit Robots 155 | . 37 . 71 25 . 22 Core Hits 83 | . 22 . 18 24 . 19 Critical Kills . | . . . . . . . Critical Parts Destroyed 2 | . . . 1 . . 1 Critical Strikes 2 | . . . 1 . . 1 Destroy 2 | . . . 1 . . 1 Melee Attacks 16 | . . . 3 13 . . Impact 16 | . . . 3 13 . . Slashing . | . . . . . . . Piercing . | . . . . . . . Sneak Attacks . | . . . . . . . Combat Hostiles . | . . . . . . . Follow-up Attacks . | . . . . . . . Damage Inflicted 3944 | . 769 . 1111 1107 . 957 Guns 2301 | . 546 . 1111 387 . 257 Cannons . | . . . . . . . Explosions 1643 | . 223 . . 720 . 700 Melee . | . . . . . . . Ramming . | . . . . . . . Kinetic 2226 | . 546 . 1036 387 . 257 Thermal 37 | . . . . . . 37 Explosive 1606 | . 223 . . 720 . 663 Electromagnetic 75 | . . . 75 . . . Impact . | . . . . . . . Slashing . | . . . . . . . Piercing . | . . . . . . . Highest Corruption . | . . . . . . . Average Corruption . | . . . . . . . Corruption Purged . | . . . . . . . Corruption Blocked . | . . . . . . . Overload Shots . | . . . . . . . Overflow Damage 61 | . 16 . . 21 . 24 Projectiles . | . . . . . . . Explosions 61 | . 16 . . 21 . 24 Melee . | . . . . . . . Knockbacks . | . . . . . . . Impact . | . . . . . . . Kinetic . | . . . . . . . Secondary . | . . . . . . . Self-Inflicted Damage 304 | . 23 . . 67 . 214 Shots 9 | . 1 . . 2 . 6 Rammed . | . . . . . . . Targets Rammed . | . . . . . . . Kicked . | . . . . . . . Crushed . | . . . . . . . Highest Temperature 120 | . 22 . 120 . . 18 Average Temperature 30 | . 5 . 52 . . 9 Received Heat Transfer 690 | . 192 . 234 102 . 162 Siege Activations . | . . . . . . . Robots Corrupted . | . . . . . . . Combat Hostiles . | . . . . . . . Parts Fried 1 | . . . 1 . . . Impact Corruptions . | . . . . . . . Robots Melted . | . . . . . . . Combat Hostiles . | . . . . . . . Parts Melted . | . . . . . . . Heat Transferred 50 | . . . . . . 50 Parts Sabotaged . | . . . . . . . Parts Stolen . | . . . . . . . Parts Stripped . | . . . . . . . Power Chain Reactions . | . . . . . . . Missiles Intercepted . | . . . . . . . Alert | -11 -10 -10 -9 -9 -9 -8 ------- Run | Jun Mat Min Mat Min Exi Min Peak Influence 253 | . 251 5 253 234 . 156 Initial 38 | . . 5 . 38 . . Average 80 | . 25 1 113 139 . 96 Maximum Alert Level 1 | . 1 . 1 1 . . Low Security (%) 88 | . 98 100 85 69 . 100 Level 1 11 | . 1 . 14 30 . . Level 2 . | . . . . . . . Level 3 . | . . . . . . . Level 4 . | . . . . . . . Level 5 . | . . . . . . . High Security . | . . . . . . . Max Security . | . . . . . . . Squads Dispatched 4 | . 2 . 2 . . . Investigation 2 | . 2 . . . . . Extermination . | . . . . . . . Reinforcement 2 | . . . 2 . . . Assault . | . . . . . . . Garrison . | . . . . . . . Intercept . | . . . . . . . Searches Triggered . | . . . . . . . Construction Impeded . | . . . . . . . Haulers Reinforced . | . . . . . . . Active Scanning Responses . | . . . . . . . Cargo Convoy Interrupts . | . . . . . . . Stealth | -11 -10 -10 -9 -9 -9 -8 --------- Run | Jun Mat Min Mat Min Exi Min Distress Signals 3 | . . . 3 . . . Communications Jammed . | . . . . . . . Distress Signals . | . . . . . . . Times Spotted 64 | . 20 2 20 13 . 9 Peak Tracking Total 7 | . 4 2 7 3 . 3 Tactical Retreats 5 | . 2 . 3 . . . Traps | -11 -10 -10 -9 -9 -9 -8 ------- Run | Jun Mat Min Mat Min Exi Min Traps Triggered 2 | . 2 . . . . . Indirectly . | . . . . . . . Trap Hack Attempts . | . . . . . . . Triggered . | . . . . . . . Disarmed . | . . . . . . . Reprogrammed . | . . . . . . . Reused . | . . . . . . . Traps Extracted . | . . . . . . . Installed . | . . . . . . . Triggered 1 | . . . . 1 . . Machines | -11 -10 -10 -9 -9 -9 -8 ---------- Run | Jun Mat Min Mat Min Exi Min Machines Disabled 3 | . . . . 2 . 1 Max in Single Turn 1 | . . . . 1 . 1 Machines Repaired . | . . . . . . . Machines Sabotaged . | . . . . . . . Overloaded Fab Kills . | . . . . . . . Hacking | -11 -10 -10 -9 -9 -9 -8 --------- Run | Jun Mat Min Mat Min Exi Min Machines Accessed 19 | . 10 . 5 . 4 . Terminals 12 | . 8 . 4 . . . Fabricators . | . . . . . . . Repair Stations 1 | . . . 1 . . . Recycling Units 2 | . 2 . . . . . Scanalyzers . | . . . . . . . Garrison Access . | . . . . . . . Total Hacks 52 | . 29 . 19 . 4 . Successful 27 | . 14 . 9 . 4 . Failed 24 | . 14 . 10 . . . Catastrophic 3 | . 2 . 1 . . . Database Lockouts 1 | . 1 . . . . . Manual 22 | . 12 . 10 . . . Terminals 43 | . 27 . 16 . . . Fabricators . | . . . . . . . Repair Stations 3 | . . . 3 . . . Recycling Units 2 | . 2 . . . . . Scanalyzers . | . . . . . . . Garrison Access . | . . . . . . . Terminal Hacks 14 | . 7 . 3 . 4 . Record 4 | . . . . . 4 . Robot Analysis 2 | . 1 . 1 . . . Prototype ID Bank 5 | . 4 . 1 . . . Unreport Threat 2 | . 2 . . . . . Registered Prototypes 1 | . . . 1 . . . Fabricator Hacks . | . . . . . . . Repair Station Hacks 2 | . . . 2 . . . Scan Component 1 | . . . 1 . . . Repair 1 | . . . 1 . . . Recycling Unit Hacks 2 | . 2 . . . . . Report Inventory 1 | . 1 . . . . . Retrieve Components 1 | . 1 . . . . . Scanalyzer . | . . . . . . . Garrison Access Hacks . | . . . . . . . Unauthorized Hacks 9 | . 5 . 4 . . . Terminals 9 | . 5 . 4 . . . Botnet 9 | . 5 . 4 . . . Fabricators . | . . . . . . . Repair Stations . | . . . . . . . Recycling Units . | . . . . . . . Scanalyzers . | . . . . . . . Garrison Access . | . . . . . . . Data Cores Recovered . | . . . . . . . Used . | . . . . . . . Hacking Detections 14 | . 9 . 5 . . . Full Trace Events . | . . . . . . . Feedback Events . | . . . . . . . Feedback Blocked . | . . . . . . . Robot Schematics Acquired . | . . . . . . . Robots Built . | . . . . . . . Authchips . | . . . . . . . Time . | . . . . . . . Total Robot Build Rating . | . . . . . . . Part Schematics Acquired . | . . . . . . . Parts Built . | . . . . . . . Authchips . | . . . . . . . Time . | . . . . . . . Total Part Build Rating . | . . . . . . . Parts Repaired 1 | . . . 1 . . . Time 51 | . . . 51 . . . Parts Recycled . | . . . . . . . Recycled Matter . | . . . . . . . Retrieved Matter . | . . . . . . . Retrieved Components 10 | . 10 . . . . . Parts Scanalyzed . | . . . . . . . Part Schematics Acquired . | . . . . . . . Parts Damaged . | . . . . . . . Bothacking | -11 -10 -10 -9 -9 -9 -8 ------------ Run | Jun Mat Min Mat Min Exi Min Used RIF Installer . | . . . . . . . Robots Hacked . | . . . . . . . Non-combat . | . . . . . . . Combat . | . . . . . . . Robot Hacks Applied . | . . . . . . . Relay Couplers Released . | . . . . . . . Fabnet Peak Effective % . | . . . . . . . Robots Rewired . | . . . . . . . Allies Hacked . | . . . . . . . Hacks Repelled . | . . . . . . . Allies | -11 -10 -10 -9 -9 -9 -8 -------- Run | Jun Mat Min Mat Min Exi Min Total Allies . | . . . . . . . Largest Group . | . . . . . . . Highest-Rated Group . | . . . . . . . Highest-Rated Ally . | . . . . . . . Total Orders . | . . . . . . . Ally Attacks . | . . . . . . . Total Damage . | . . . . . . . Kills . | . . . . . . . Allies Corrupted . | . . . . . . . Allies Melted . | . . . . . . . Intel | -11 -10 -10 -9 -9 -9 -8 ------- Run | Jun Mat Min Mat Min Exi Min Robot Analysis Total 2 | . 1 . 1 . . . Derelict Logs Recovered 2 | . . . . 2 . . Drone Launches . | . . . . . . . Drone Recoveries . | . . . . . . . Exploration | -11 -10 -10 -9 -9 -9 -8 ------------- Run | Jun Mat Min Mat Min Exi Min Turns Passed 5278 | . 1931 67 977 1184 693 426 Spaces Moved 3324 | 1 1013 53 669 789 534 265 Core 60 | . . 42 18 . . . Treads . | . . . . . . . Legs 2994 | 1 1013 11 381 789 534 265 Wheels 108 | . . . 108 . . . Hover 162 | . . . 162 . . . Flight . | . . . . . . . Fastest Speed 52 | 120 120 100 52 130 130 130 Average Speed 139 | 120 175 118 108 130 130 130 Slowest Speed 420 | 120 190 190 420 130 130 130 Overloaded Moves . | . . . . . . . Propulsion Burnouts . | . . . . . . . Robots Hopped . | . . . . . . . Cave-ins Triggered 1 | . . . . . . 1 Exploration Rate (%) 58 | 2 99 15 42 98 93 63 Regions Visited 6 Branch Regions 4 Pre-discovered Areas . | . . . . . . . Known Exits Taken . | . . . . . . . Unknown Exits Taken 6 | 1 1 1 1 1 1 . Scrap Searched 4 | . . . . 3 . 1 Spaces Dug 49 | . 10 . 1 23 . 15 Terrain Destroyed 211 | . 27 . 1 77 . 106 Melee 6 | . . . 1 5 . . Projectile . | . . . . . . . AOE 205 | . 27 . . 72 . 106 Terrain Rammed . | . . . . . . . Walls Destroyed . | . . . . . . . Machines Disabled . | . . . . . . . Actions | -11 -10 -10 -9 -9 -9 -8 --------- Run | Jun Mat Min Mat Min Exi Min Total 3727 | . 1099 59 840 879 535 315 Wait 116 | . 14 . 69 14 . 19 Move 3318 | . 1012 52 668 788 533 265 Hop . | . . . . . . . Pick Up 33 | . 9 . 7 14 1 2 Fast Attach 21 | . 3 . 16 1 . 1 Attach 6 | . . . 4 1 . 1 Detach 6 | . 1 1 4 . . . Swap 26 | . 6 1 8 7 . 4 Drop 42 | . 10 5 20 4 1 2 Fire 143 | . 44 . 41 37 . 21 Melee 16 | . . . 3 13 . . Ram . | . . . . . . . Kick . | . . . . . . . Crush . | . . . . . . . Escape Stasis . | . . . . . . . Rewire . | . . . . . . . Trap . | . . . . . . . Miscellaneous . | . . . . . . . Route ------- -11/Junkyard -10/Materials (discovered 4 exits: *Mat x3 / [*Min]) -10/Mines -9/Materials (discovered 2 exits: *Mat / [*Min]) -9/Mines (discovered 3 exits: *Mat x2 / *Exi) -9/Exiles (discovered 2 exits: [*Min x2]) -8/Mines History --------- Turn | Location | Event 1 | -11/Junkyard | Discovered new exit (range 0) 1 | -11/Junkyard | Entered Materials 320 | -10/Materials | Build established: Mutant 556 | -10/Materials | Discovered new exit (range 16) 693 | -10/Materials | Discovered new exit (range 16) 958 | -10/Materials | Discovered new exit (range 16) 1220 | -10/Materials | Discovered new exit (range 8) 1356 | -10/Materials | Central database locked down 1932 | -10/Materials | Entered Mines 1933 | -10/Mines | Assembled infested the area 1938 | -10/Mines | Assisted by a Guerilla fighting off Assembled 1956 | -10/Mines | Core integrity fell below 50% 1987 | -10/Mines | Discovered new exit (range 12) 1999 | -10/Mines | Entered Materials 1999 | -9/Materials | Evolved 2 slots: Propulsion x1, Utility x1 2299 | -9/Materials | Discovered new exit (range 16) 2707 | -9/Materials | Repaired Imp. Assault Rifle 2723 | -9/Materials | Discovered new exit (range 16) 2976 | -9/Materials | Entered Mines 3089 | -9/Mines | Identified exit to Materials 3101 | -9/Mines | Excavation squad dispatched 3101 | -9/Mines | A large section of the Mines collapsed 3351 | -9/Mines | Excavation squad dispatched 3568 | -9/Mines | Deemed a non-threat by the Exiles lab entrance 3569 | -9/Mines | Discovered new exit (range 5) 3671 | -9/Mines | Learned location of 1 exit from Materials 3849 | -9/Mines | Discovered exit to Materials (range 11) 4160 | -9/Mines | Entered Exiles 4160 | -9/Exiles | Found Exiles lab abandoned 4181 | -9/Exiles | Discovered new exit (range 14) 4840 | -9/Exiles | Discovered new exit (range 12) 4853 | -9/Exiles | Entered Mines 5137 | -8/Mines | Core integrity fell below 50% 5280 | -8/Mines | Crushed by falling debris 5280 | -8/Mines | Smashed by cave-in Last Messages --------------- 05138_ Destroyed Cld. Ion Engine. 05140_ S-10 Pest destroyed. 05142_ The unstable cave ceiling collapses. 05146_ Acquired 6 matter. 05150_ Acquired 1 matter. 05155_ R-06 Scavenger collects Lgt. Ion Engine. 05160_ R-06 Scavenger collects Lgt. Assault Rifle. 05250_ K-01 Serf collects debris. 05260_ G-47 Trooper destroyed. 05262_ Destroyed Lgt. Angular Momentum Engine. 05262_ G-47 Trooper destroyed. 05274_ G-50 Soldier destroyed. 05280_ The unstable cave ceiling collapses. 05280_ Crushed by falling debris. 05280_ Adv. Heat Sink destroyed. 05280_ System corrupted by crushing effect (+3). 05280_ Lrg. Storage Unit destroyed. 05280_ System corrupted by crushing effect (+2). 05280_ Titanium Leg destroyed. 05280_ System corrupted by crushing effect (+5). Map ----- +----------------------------------------------------+ | ?# #??## ##???????????????????? | | ?# #???## # ##??????????????????? | | ?# #????# ### #??????????????????? | | ## ###### #?# ######??????????????????? | | #?# #???????????????????????? | | ###########?# #???????????????????????? | | ????????????# #???????????????????????? | | ????????????# #???????????????????????? | | ????????????# #???????????????????????? | | ????????????# #???????????????????????? | | ????????????# #???????????????????????? | | ????????????# #???????????????????????? | | ????????????# #???????????????????????? | | ???????###### #???????????????????????? | | ???????# #???????????????????????? | | ???????# ######???????????????????????? | | ???????# #????????????????????????????? | | ???????# ##?????????####??????????????? | | ???????# ##????????# ???????????????? | | ???????# ########## #????##?????????? | | ? ????## ####### ##### # #??????? | | #### ## ####???????? | | ##???????? | | ??# ### # ##### #??? | | ??##?????## ### === #?? | | ??????????# ### # !@]] ####?????? | | ??????????# #### # ]%= #??????? | | ??????????# # #### ???? | | ?????????## %####?# #?? | | ????????## ##?# % ##?? | | ???????## ## #??? | | ??????## #??? | | ?????## #### #?? | | ?????# ### ##???## #? | | ?##### ##?####??????### #? | | ?# % ##???????????????## #?? | | ?# ####?????????????????? #?? | | ?# ##### ##?????????????????????????? | | ## #???# #??????????????????????????? | | #??? #?????????????????????????? | | ####??? #?????????????????????????? | | #????? ##?????????????????????????? | | #????? ## #??????????????????????????? | | #?????#?# #??????????????????????????? | | #???????? #??????????????????????????? | | ????????? #??????????????????????????? | | ????????? #??????????????????????????? | | ????????? #??????????????????????????? | | ??????????????????????????????????????? | | ??????????????????????????????????????? | +----------------------------------------------------+ Best States ------------- Heat Dissipation 47 Energy Generation 14 Energy Capacity 280 Matter Stores 300 Matter Capacity 300 Sight Range 16 Terrain Scan Density 10 Armor Coverage 300 Evasion (%) 55 Targeting Accuracy 5 Item Schematics ----------------- None Robot Schematics ------------------ None Fabricated ------------ Nothing Alien Tech Used ----------------- None Achievements -------------- None Challenges ------------ None Game ------ Seed UtilityNullAutogun Manual? 0 Play Time 00:40:21 Cumulative 208.0 hours Start 2023.09.14 @ 16:17:55 End 2023.09.14 @ 17:13:24 Sessions 1 Manual Loads 0 Difficulty Rogue Special Mode None Game No. 117 Rogue 73 Adventurer 44 Explorer 0 Win Type - Total 1 Types 1/0/0/0/0/0/0/0/0 Lore% 58 Gallery% 57 Achievement% 55 Wizard Run 0 Options --------- ASCII 0 Keyboard 1 Movement Vi Keybinds 1 Fullscreen 2 Font 18/X11Bold Map View 76x50 Tactical HUD 1 Map Filters NONE Filters NONE Steam 1 RUN: f7959fec-7688-4d84-a34a-41eeeeecabad